[Event "8th Fischer Heraklion-GM 2022"]
[Site "Heraklion"]
[Date "2022.05.03"]
[Round "8.3"]
[White "Szwed, Jacek"]
[Black "Samaridis, Konstantinos"]
[Result "1-0"]
[ECO "C45"]
[WhiteElo "2360"]
[BlackElo "2064"]
[Annotator "TA"]
[PlyCount "69"]
[EventDate "2022.04.18"]
[EventType "tourn"]
[EventCountry "GRE"]
[SourceTitle "playchess.com"]
[Source "ChessBase"]
[SourceQuality "1"]
[TimeControl "40/5400+30:1800+30"]

{[%evp 9,69,14,6,-23,-22,-18,-18,-32,-17,-23,58,-18,-14,-11,0,-106,44,0,53,34,173,29,41,-85,163,188,206,222,348,300,300,295,320,323,326,321,496,477,489,312,316,329,1039,1029,1369,1296,2150,2152,2791,1274,1272,1240,1165,0,0,0,1159,1113,29988,2422,29992,29993]} 1. e4 {[%emt 0:01:08]} e5 {[%emt 0:16:56]} 2. Nf3 {[%emt 0:00:06]} Nc6 {[%emt 0:00:03]} 3. d4 {[%emt 0:00:06]} exd4 {[%emt 0:00:05]} 4. Nxd4 {[%emt 0:00:04]} Nf6 {[%emt 0:00:06]} 5. Nxc6 {[%emt 0:00:04]} bxc6 {[%emt 0:00:04]} 6. Qe2 {[%emt 0:00:05] C45: Scotch Game.} Rb8 {[%emt 0:00:10]} 7. e5 {[%emt 0:03:13]} Nd5 {[%emt 0:00:05] [#]} 8. g3 $146 {[%emt 0:15:24] The position is equal.} ({Predecessor:} 8. c4 Bb4+ 9. Nd2 Nf4 10. Qe3 Ng6 11. a3 Be7 12. Nf3 c5 13. h4 Rb6 14. h5 {0-1 (50) De la Riva Aguado,O (2503)-So,W (2782) Baku 2016}) 8... Bc5 {[%emt 0:00:34]} 9. c4 {[%emt 0:20:12]} Ba6 {[%emt 0:01:25]} (9... Nb6 $11) 10. Bg2 {[%emt 0:18:30]} ({White should play} 10. Qg4 $1 $14 Ne7 11. Qxg7) 10... O-O {[%emt 0:01:28]} 11. O-O {[%emt 0:00:12]} Re8 {[%emt 0:00:31]} 12. Rd1 {[%emt 0:05:08]} (12. Qc2 $11) 12... Qc8 {[%emt 0:07:54]} (12... d6 $1 $17 13. Qc2 Rxe5 14. cxd5 Re2) 13. b3 {[%emt 0:11:21]} (13. Qc2 $5 {[%cal Rc4d5]} Nb6 14. b3 $14 (14. Be4 Rxe5 15. Nd2 d6 $15)) 13... Nb6 {[%emt 0:03:42]} (13... d6 $11) 14. Bh3 {[%emt 0:05:24]} Qb7 {[%emt 0:02:55]} ({Black should try} 14... Qd8 $14) 15. Qg4 {[%emt 0:05:09]} (15. Bxd7 $6 Nxd7 16. Rxd7 Qc8 $11) (15. Nc3 $1 $18) 15... Rxe5 $11 {[%emt 0:02:37]} 16. Bb2 {[%emt 0:01:43] [#]} (16. Nd2 $14 {keeps the upper hand.} f5 17. Qg5) 16... f5 $2 {[%emt 0:10:18]} 17. Qg5 $18 {[%emt 0:03:44]} Be7 {[%emt 0:02:31]} 18. Qf4 $40 {[%emt 0:00:01][%mdl 128] White is out for blood.} Re2 {[%emt 0:00:31] [#]} (18... Re4 {is a better defense.} 19. Qxf5 Re6) 19. Bxg7 $1 {[%emt 0:02:33][%mdl 512]} Kxg7 {[%emt 0:01:14]} 20. Bxf5 {[%emt 0:00:01] Black must now prevent Qg4+.} Re6 {[%emt 0:04:20]} (20... Bf6 $2 21. Qg4+ Kh8 22. Qxe2 $18) 21. Bxe6 {[%emt 0:01:03]} dxe6 {[%emt 0:00:19]} 22. Qg4+ {[%emt 0:00:06]} Kf7 {[%emt 0:00:50]} (22... Kh8 $142 23. Qd4+ (23. Qxe6 Bf8 $16) 23... Kg8) 23. Qh5+ {[%emt 0:03:16]} ({Weaker is} 23. Re1 Qc8 24. Nd2 Bf6 $18) 23... Kg7 {[%emt 0:01:07]} 24. Nc3 {[%emt 0:01:17][%cal Bb1c3,Bc3e4,Be4f6][%mdl 32] Rd4 is the strong threat.} c5 {[%emt 0:00:22] Against Rd4} 25. Qg4+ {[%emt 0:00:51]} Kf7 $2 {[%emt 0:05:05]} (25... Kh8 26. Qxe6 Bf8) 26. Rd3 {[%emt 0:00:01]} Qc6 {[%emt 0:03:57]} 27. Rf3+ {[%emt 0:00:03]} Bf6 {[%emt 0:00:19]} 28. Ne4 {[%emt 0:00:33]} Nd7 {[%emt 0:02:11]} 29. Qh5+ {[%emt 0:00:01]} (29. Rd1 $142 Rf8 30. Rxd7+ $1 {[%mdl 512]} Qxd7 31. Rxf6+ Ke8 32. Qh5+ Rf7 33. Nxc5) 29... Ke7 {[%emt 0:05:59]} 30. Qxh7+ {[%emt 0:00:16]} Kd8 {[%emt 0:00:10] [#]} 31. Qg8+ $2 {[%emt 0:00:36]} (31. Nxf6 $1 $18 {Qh8+ would kill now.} Nf8 32. Rd3+ Kc8 33. Qe7) 31... Ke7 $11 {[%emt 0:01:17]} 32. Qh7+ {[%emt 0:00:01][%mdl 8192]} (32. Qg6 $11 Rf8 33. Rxf6 Nxf6 34. Ng5 (34. Qg7+ $2 Rf7 $19)) 32... Kd8 $18 {[%emt 0:00:03] [#]} 33. Nxf6 $1 {[%emt 0:01:48]} Ne5 {[%emt 0:04:01]} (33... Nf8 34. Rd3+) 34. Re3 {[%emt 0:00:28]} (34. Qh8+ $142 Ke7 35. Qg7+ Kd6 36. Rd1+ Qd5 37. Ne4+ Kc6 38. cxd5+ Kb6 39. Qxe5) 34... Bb7 {[%emt 0:02:18]} 35. Rd1+ {[%emt 0:00:16] Weighted Error Value: White=0.61/Black=1.04} 1-0

[Event "8th Fischer Heraklion-GM 2022"]
[Site "Heraklion"]
[Date "2022.05.03"]
[Round "8.4"]
[White "Nikolaidis, Ioannis"]
[Black "Vaishali R"]
[Result "1/2-1/2"]
[ECO "D02"]
[WhiteElo "2536"]
[BlackElo "2411"]
[Annotator "TA"]
[PlyCount "38"]
[EventDate "2022.04.18"]
[EventType "tourn"]
[EventCountry "GRE"]
[SourceTitle "playchess.com"]
[Source "ChessBase"]
[SourceQuality "1"]
[TimeControl "40/5400+30:1800+30"]

{[%evp 9,38,29,33,27,28,25,41,21,44,24,28,25,16,29,23,23,32,17,17,8,27,8,26,0,18,0,0,0,0,4,68]} 1. d4 {[%emt 0:00:29]} Nf6 {[%emt 0:00:48]} 2. Nf3 {[%emt 0:00:19]} g6 {[%emt 0:00:31]} 3. Nbd2 {[%emt 0:00:51]} d5 {[%emt 0:00:07]} 4. e3 {[%emt 0:01:06]} a5 {[%emt 0:03:53]} 5. c4 {[%emt 0:04:50]} c6 {[%emt 0:02:10]} 6. Be2 {[%emt 0:01:54] D02: 1 d4 d5 2 Nf3 sidelines, including 2...Nf6 3 g3 and 2...Nf6 3 Bf4.} Bg7 {[%emt 0:00:16]} 7. b3 {[%emt 0:01:13][%cal Bb2b3,Bb3b4][%mdl 32]} O-O {[%emt 0:00:48] [#]} 8. O-O $146 {[%emt 0:00:04] White is slightly better.} ({Predecessor:} 8. Bb2 Nbd7 9. O-O b6 10. Re1 Bb7 11. Bf1 e6 12. Qc2 Qe7 13. Rad1 a4 14. Bc3 axb3 15. axb3 {½-½ (41) Valsecchi,A (2429)-Stefanova,A (2531) Plovdiv 2012}) 8... a4 {[%emt 0:05:35]} 9. b4 {[%emt 0:03:16]} Nbd7 {[%emt 0:11:42]} 10. Ba3 {[%emt 0:01:38]} Re8 {[%emt 0:06:40]} 11. b5 {[%emt 0:05:24]} e5 {[%emt 0:21:26]} 12. bxc6 {[%emt 0:11:11]} (12. dxe5 {with more complications.} Nxe5 13. Nxe5 Rxe5 14. Nf3) 12... bxc6 {[%emt 0:00:05]} 13. Nxe5 {[%emt 0:05:28]} Nxe5 {[%emt 0:00:08]} 14. dxe5 {[%emt 0:00:06]} Rxe5 {[%emt 0:00:16]} 15. Bb2 {[%emt 0:02:50]} Re8 {[%emt 0:01:35]} 16. a3 {[%emt 0:04:17]} Ba6 {[%emt 0:10:13] The position is equal.} 17. cxd5 {[%emt 0:02:37]} Qxd5 {[%emt 0:06:44] ...Ne4 is the strong threat.} 18. Bxa6 {[%emt 0:03:53]} Rxa6 {[%emt 0:00:03]} 19. Qc2 {[%emt 0:00:51]} c5 {[%emt 0:08:58] Weighted Error Value: White=0.10 (very precise) /Black=0.08 (flawless)} (19... Ne4 $11 20. Bxg7 Nxd2) 1/2-1/2

[Event "8th Fischer Heraklion-GM 2022"]
[Site "Heraklion"]
[Date "2022.05.03"]
[Round "8.5"]
[White "Materia, Marco"]
[Black "Kapnisis, Spyridon"]
[Result "1-0"]
[ECO "E61"]
[WhiteElo "2398"]
[BlackElo "2450"]
[Annotator "TA"]
[PlyCount "71"]
[EventDate "2022.04.18"]
[EventType "tourn"]
[EventCountry "GRE"]
[SourceTitle "playchess.com"]
[Source "ChessBase"]
[SourceQuality "1"]
[TimeControl "40/5400+30:1800+30"]

{[%evp 14,71,0,0,0,0,0,0,0,0,0,0,0,12,0,0,2,-8,-2,0,3,0,6,-16,82,70,86,75,112,43,32,31,76,83,199,79,122,122,254,297,391,387,416,389,528,547,709,697,835,841,910,641,943,954,1068,1038,29954,29957,5718,5706]} 1. d4 {[%emt 0:00:02]} Nf6 {[%emt 0:00:19]} 2. c4 {[%emt 0:00:04]} g6 {[%emt 0:00:09]} 3. Nc3 {[%emt 0:00:16]} Bg7 {[%emt 0:00:08]} 4. Nf3 {[%emt 0:00:12]} d6 {[%emt 0:00:10]} 5. Bg5 {[%emt 0:00:28]} h6 {[%emt 0:00:20]} 6. Bh4 {[%emt 0:00:07]} g5 {[%emt 0:00:07]} 7. Bg3 {[%emt 0:00:02]} Nh5 {[%emt 0:00:07]} 8. e3 {[%emt 0:00:06]} c5 {[%emt 0:00:34] E61: King's Indian: Early deviations for White, including Smyslov System.} 9. Be2 {[%emt 0:00:05]} Nxg3 {[%emt 0:01:10]} 10. hxg3 {[%emt 0:00:05]} g4 {[%emt 0:00:06] The position is equal.} 11. Nh4 {[%emt 0:04:18]} h5 {[%emt 0:01:28]} 12. Rc1 {[%emt 0:02:09]} cxd4 {[%emt 0:00:31]} 13. exd4 {[%emt 0:00:01]} Nc6 {[%emt 0:00:16]} 14. d5 {[%emt 0:00:29] [#]} Ne5 $146 {[%emt 0:03:05]} ({Predecessor:} 14... Nd4 15. O-O Qb6 16. b3 Nf5 17. c5 dxc5 18. Na4 Qf6 19. Bb5+ Kf8 20. Nxc5 Qd4 {½-½ (32) Giffard,N (2361)-Popovic,D (2561) Cappelle la Grande 2012}) 15. O-O {[%emt 0:11:03]} Bd7 {[%emt 0:02:45]} 16. Ne4 {[%emt 0:05:29]} Rc8 {[%emt 0:06:41]} (16... f5 $5 {[%cal Rf5e4]} 17. Nc3 Qb6 $11) 17. Re1 {[%emt 0:09:41]} Bh6 {[%emt 0:13:43]} 18. Rc2 {[%emt 0:03:58]} Qa5 {[%emt 0:04:06]} (18... O-O $11 {keeps the balance.}) 19. Qb1 $1 $16 {[%emt 0:06:03][%cal Oc4c5]} Qb6 {[%emt 0:22:29] Prevents c5.} 20. Bf1 {[%emt 0:18:05]} Qd4 {[%emt 0:20:56]} 21. b3 {[%emt 0:04:50]} (21. Rc3 $16) 21... f5 {[%emt 0:02:08]} 22. Nc3 {[%emt 0:00:57]} O-O {[%emt 0:00:28]} 23. Ne2 $1 {[%emt 0:00:35]} Qc5 {[%emt 0:01:21] [#]} (23... Qb6 $16) 24. Nf4 {[%emt 0:03:00]} (24. b4 $1 $18 {[%cal Rb4c5]} Qc7 25. c5) 24... Rf7 {[%emt 0:01:46]} 25. Rce2 {[%emt 0:02:27]} b5 {[%emt 0:03:45] Black cannot hold the game after this.} (25... Qc7 $16) 26. b4 $18 {[%emt 0:02:35]} Qd4 {[%emt 0:00:16]} 27. c5 {[%emt 0:03:37] Strongly threatening Rd1.} Bxf4 {[%emt 0:00:35]} 28. Rd1 {[%emt 0:00:12]} ({Less strong is} 28. gxf4 Qxf4 29. c6 Bxc6 $18) 28... Nf3+ {[%emt 0:01:17]} (28... Qc4 $2 {[#]} 29. Rxe5 $1 {[%mdl 512]} Qc3 30. Re2 $18) 29. gxf3 {[%emt 0:00:54]} Qc3 {[%emt 0:06:04]} 30. c6 {[%emt 0:01:34]} Bxc6 {[%emt 0:00:04]} 31. dxc6 {[%emt 0:01:15]} gxf3 {[%emt 0:00:08] [#]} 32. Rd3 $1 {[%emt 0:00:46]} Qxc6 {[%emt 0:03:16]} (32... Qc1 33. Qxc1) 33. Rxf3 {[%emt 0:00:08]} Bg5 {[%emt 0:00:10]} 34. Rxf5 {[%emt 0:00:16]} Bxh4 {[%emt 0:00:11]} 35. Rxf7 {[%emt 0:00:26][%mdl 64] Remove Defender, Deflection} Kxf7 {[%emt 0:00:14]} 36. Qh7+ {[%emt 0:00:25] Weighted Error Value: White=0.19 (very precise) /Black=0.60} 1-0

[Event "8th Fischer Heraklion-GM 2022"]
[Site "Heraklion"]
[Date "2022.05.04"]
[Round "9.1"]
[White "Kapnisis, Spyridon"]
[Black "Korneev, Oleg"]
[Result "1/2-1/2"]
[ECO "E05"]
[WhiteElo "2450"]
[BlackElo "2521"]
[Annotator "TA"]
[PlyCount "27"]
[EventDate "2022.04.18"]
[EventType "tourn"]
[EventCountry "GRE"]
[SourceTitle "playchess.com"]
[Source "ChessBase"]
[SourceQuality "1"]
[TimeControl "40/5400+30:1800+30"]

{[%evp 26,27,20,0]} 1. d4 {[%emt 0:00:04]} d5 {[%emt 0:03:46]} 2. c4 {[%emt 0:00:05]} e6 {[%emt 0:00:33]} 3. Nf3 {[%emt 0:00:03]} Nf6 {[%emt 0:00:04]} 4. g3 {[%emt 0:00:06]} Be7 {[%emt 0:00:03]} 5. Bg2 {[%emt 0:00:04]} O-O {[%emt 0:00:02]} 6. O-O {[%emt 0:00:06]} dxc4 {[%emt 0:00:03]} 7. Qc2 {[%emt 0:00:04]} a6 {[%emt 0:00:02]} 8. Qxc4 {[%emt 0:00:07]} b5 {[%emt 0:00:03]} 9. Qc2 {[%emt 0:00:05]} Bb7 {[%emt 0:00:04]} 10. Bd2 {[%emt 0:00:05] [#]} Be4 $146 {[%emt 0:00:03]} ({Predecessor:} 10... Ra7 11. Rd1 Nbd7 12. Ba5 Qa8 13. b4 Nb8 14. Nbd2 Nc6 15. Nb3 Nxb4 16. Bxb4 Bxb4 17. Nc5 Bd5 18. a4 h6 19. Rdb1 Bxc5 20. Qxc5 Ne4 {0-1 (66) Dubov,D (2711)-Grischuk,A (2742) Chess.com INT 2022}) 11. Qc1 {[%emt 0:00:04]} Bb7 {[%emt 0:00:03]} 12. Qc2 {[%emt 0:00:08]} Be4 {[%emt 0:00:06]} 13. Qc1 {[%emt 0:00:05]} Bb7 {[%emt 0:00:02]} 14. Qc2 {[%emt 0:00:35]} 1/2-1/2

[Event "8th Fischer Heraklion-GM 2022"]
[Site "Heraklion"]
[Date "2022.05.04"]
[Round "9.2"]
[White "Vaishali R"]
[Black "Materia, Marco"]
[Result "1-0"]
[ECO "B47"]
[WhiteElo "2411"]
[BlackElo "2398"]
[Annotator "TA"]
[PlyCount "59"]
[EventDate "2022.04.18"]
[EventType "tourn"]
[EventCountry "GRE"]
[SourceTitle "playchess.com"]
[Source "ChessBase"]
[SourceQuality "1"]
[TimeControl "40/5400+30:1800+30"]

{[%evp 11,59,14,28,28,28,28,24,26,27,20,23,15,46,34,31,13,49,52,44,55,34,42,81,74,75,75,103,102,123,121,133,132,126,101,193,193,193,175,217,208,343,331,465,460,29991,29992,29993,29994,29994,29995]} 1. e4 {[%emt 0:00:36]} c5 {[%emt 0:00:03]} 2. Nf3 {[%emt 0:00:08]} e6 {[%emt 0:00:04]} 3. d4 {[%emt 0:00:20]} cxd4 {[%emt 0:00:04]} 4. Nxd4 {[%emt 0:00:06]} Nc6 {[%emt 0:00:03]} 5. Nc3 {[%emt 0:00:28]} Qc7 {[%emt 0:00:05]} 6. Be2 {[%emt 0:00:37]} a6 {[%emt 0:00:05]} 7. Nxc6 {[%emt 0:00:40] B47: Sicilian: Taimanov: 5 Nc3 Qc7 6 f4, 6 g3 and 6 Be2.} bxc6 {[%emt 0:02:42]} 8. Qd3 $1 {[%emt 0:00:16][%mdl 4] is currently scoring better than 8.0-0.} Nf6 {[%emt 0:03:26][%cal Bg8f6,Bf6d7,Bd7e5,Be5c4][%mdl 32]} 9. Qg3 {[%emt 0:01:57] White has an edge.} Qxg3 {[%emt 0:07:34]} 10. hxg3 {[%emt 0:00:03][%cal Bh2g3,Bg3g4,Bg4g5][%mdl 32]} (10. fxg3 d5 $15) 10... d5 {[%emt 0:00:35]} 11. g4 {[%emt 0:04:23]} Bb4 {[%emt 0:06:41]} 12. Bd2 {[%emt 0:01:29] [#]} a5 $146 {[%emt 0:10:23]} ({Predecessor:} 12... d4 13. e5 Nd7 14. Ne4 Bxd2+ 15. Nxd2 c5 16. Nc4 Ke7 17. Bf3 Rb8 18. O-O-O Nb6 {1-0 (38) Karjakin,S (2752)-Cori,J (2652) Chess.com INT 2020}) 13. g5 {[%emt 0:15:52]} Nd7 {[%emt 0:03:26]} (13... Bxc3 $5 14. Bxc3 Nxe4 $11) 14. O-O-O {[%emt 0:02:58]} Ba6 {[%emt 0:05:04]} 15. Bxa6 {[%emt 0:07:46]} Rxa6 {[%emt 0:00:09]} 16. Rh3 {[%emt 0:01:50]} Ne5 {[%emt 0:10:43]} 17. Rdh1 {[%emt 0:16:42]} Nc4 {[%emt 0:04:05]} 18. Be1 {[%emt 0:03:54]} ({Inferior is} 18. Rxh7 Rxh7 19. Rxh7 Nxd2 20. Kxd2 d4 21. Rxg7 Kf8 $17) 18... Ke7 {[%emt 0:09:48][%cal Oh7h5]} 19. b3 {[%emt 0:06:35]} ({And not} 19. Rxh7 Rxh7 20. Rxh7 d4 $17) 19... Nd6 {[%emt 0:02:04]} 20. e5 {[%emt 0:02:10]} Nb5 {[%emt 0:03:42]} 21. Nxb5 {[%emt 0:08:05]} cxb5 {[%emt 0:00:21]} 22. Rxh7 {[%emt 0:04:32]} Rg8 {[%emt 0:10:28] [#]} (22... Rc8 $16 {was worth a try.}) 23. Bxb4+ $1 $18 {[%emt 0:05:30]} axb4 {[%emt 0:00:01][%mdl 4096] Endgame KRR-KRR} 24. Kb2 {[%emt 0:00:55]} Rga8 {[%emt 0:02:50]} 25. Ra1 {[%emt 0:00:07]} ({Avoid the trap} 25. Rxg7 $2 Rxa2+ 26. Kc1 Ra1+ 27. Kd2 Rxh1 $19) 25... d4 {[%emt 0:02:41]} (25... g6 $142 26. Rh4 Rc8 27. Rxb4 Rac6) 26. Rxg7 {[%emt 0:03:43]} Rc6 {[%emt 0:00:56]} (26... R6a7 {was called for.} 27. g6 Kf8 28. Rxf7+ Rxf7 29. gxf7 Kxf7) 27. g6 {[%emt 0:00:24]} Rac8 {[%emt 0:00:13]} (27... Kf8 $18) 28. Rxf7+ {[%emt 0:00:08] White mates.} Ke8 {[%emt 0:00:04]} 29. Rh1 {[%emt 0:00:10][%cal Rh1h8]} Rxc2+ {[%emt 0:00:19]} 30. Kb1 {[%emt 0:00:05] Weighted Error Value: White=0.02 (flawless) /Black=0.58} 1-0

[Event "8th Fischer Heraklion-GM 2022"]
[Site "Heraklion"]
[Date "2022.05.04"]
[Round "9.3"]
[White "Samaridis, Konstantinos"]
[Black "Nikolaidis, Ioannis"]
[Result "0-1"]
[ECO "C15"]
[WhiteElo "2064"]
[BlackElo "2536"]
[Annotator "TA"]
[PlyCount "116"]
[EventDate "2022.04.18"]
[EventType "tourn"]
[EventCountry "GRE"]
[SourceTitle "playchess.com"]
[Source "ChessBase"]
[SourceQuality "1"]
[TimeControl "40/5400+30:1800+30"]

{[%evp 14,116,-20,-86,-90,-91,-100,-99,-93,-118,-119,-223,-225,-208,-204,-238,-177,-174,-176,-226,-219,-228,-208,-190,-188,-306,-304,-324,-319,-305,-311,-300,-305,-306,-307,-279,-278,-313,-265,-363,-153,-210,-187,-182,0,0,0,0,-10,-304,-315,-429,-421,-412,-407,-384,-331,-368,-364,-361,-349,-339,-322,-303,-292,-1007,-1048,-7022,-4090,-1444,-2563,-1571,-1317,-12839,-12839,-27999,-27999,-27999,-27999,-27999,-27999,-27999,-27999,-27999,-27999,-27999,-27999,-27998,-27998,-27996,-27996,-27997,-27997,-27998,-27998,-27999,-27999,-27996,-27996,-27997,-27997,-27998,-27998,-27999,-27998]} 1. e4 {[%emt 0:08:48]} e6 {[%emt 0:01:05]} 2. d4 {[%emt 0:00:06]} d5 {[%emt 0:00:12]} 3. Nc3 {[%emt 0:00:04]} Bb4 {[%emt 0:00:24]} 4. Nge2 {[%emt 0:00:07]} dxe4 {[%emt 0:01:43]} 5. a3 {[%emt 0:01:11]} Be7 {[%emt 0:00:33]} 6. Nxe4 {[%emt 0:00:07]} Nf6 {[%emt 0:00:07]} 7. N2c3 {[%emt 0:02:06] 7.Nxf6+ gains popularity.} O-O {[%emt 0:01:51]} 8. Be2 {[%emt 0:00:19]} (8. Ng3 $11) 8... Nc6 $17 {[%emt 0:06:58] C15: French: 3 Nc3 Bb4: Unusual White 4th moves.} 9. Be3 {[%emt 0:00:39]} Nxe4 {[%emt 0:00:52]} 10. Nxe4 {[%emt 0:00:06]} f5 $1 {[%emt 0:00:43][%cal Bf7f5,Bf5f4,Bf4e3,Be3f2][%mdl 32] Black is better.} 11. Nc3 {[%emt 0:02:16]} f4 {[%emt 0:04:26]} 12. d5 {[%emt 0:01:57]} fxe3 $19 {[%emt 0:06:37]} 13. dxc6 {[%emt 0:00:05]} exf2+ {[%emt 0:04:57]} 14. Kf1 {[%emt 0:00:11] [#]} Qxd1+ $146 {[%emt 0:00:50]} ({Predecessor:} 14... Qe8 15. Bf3 bxc6 16. Ne4 Ba6+ 17. Kxf2 Qh5 18. Qd4 Rad8 19. Qe3 Qe5 20. b4 Bc4 {0-1 (31) Van Herck,M (2135)-Westerinen,H (2350) Thessaloniki 2011}) 15. Rxd1 {[%emt 0:00:19]} bxc6 {[%emt 0:00:06][%cal Bb7c6,Bc6c5][%mdl 32]} 16. Bf3 {[%emt 0:03:58]} (16. Bd3 {was called for.}) 16... Rb8 {[%emt 0:05:22]} 17. b4 {[%emt 0:01:08]} c5 {[%emt 0:02:24]} 18. b5 {[%emt 0:00:55]} a6 {[%emt 0:02:17]} 19. bxa6 {[%emt 0:00:30]} (19. a4 $142) 19... Bxa6+ {[%emt 0:01:03]} 20. Kxf2 {[%emt 0:00:52]} Bh4+ {[%emt 0:05:16]} (20... Rb2 $2 21. Ne4 $19) 21. Ke3 {[%emt 0:03:41]} Bg5+ {[%emt 0:01:47] A strong pair of Bishops.} 22. Kf2 {[%emt 0:00:23]} Rb2 {[%emt 0:00:26]} 23. Kg3 {[%emt 0:02:09]} Rxc2 {[%emt 0:08:17]} 24. Ne4 {[%emt 0:00:09]} Be3 {[%emt 0:04:17]} 25. Bg4 {[%emt 0:02:10]} e5 {[%emt 0:06:31][%cal Oh7h5]} 26. Rd7 {[%emt 0:01:59]} Bb7 {[%emt 0:03:59]} (26... h5 $19 27. Be6+ Kh7) 27. Be6+ {[%emt 0:01:54]} (27. Re1 $17 {might work better.} Bd4 28. Be6+ Kh8 29. Kh3) 27... Kh8 {[%emt 0:02:28]} 28. Re1 {[%emt 0:04:25] [#]} Bd4 {[%emt 0:13:36]} ({Not} 28... Bxe4 29. Rxe3 Bxg2 30. Rxe5 $17) (28... Rc3 $1 $19 {[%mdl 512]} 29. Nxc3 Bf2+ 30. Kh3 Bxe1) 29. Rf1 $1 $11 {[%emt 0:04:41][%cal Rf1f8]} Ra8 {[%emt 0:01:04]} 30. Rdf7 $1 {[%emt 0:02:27] White wants to mate with Rf8+.} g6 {[%emt 0:05:38][%cal Bg7g6,Bg6g5][%mdl 32]} (30... Rxa3+ $2 31. Kh4 Bf2+ 32. Nxf2 Ra4+ 33. Ng4 $18) 31. Nf6 {[%emt 0:10:32][%mdl 8192] This costs White the game.} (31. Ng5 $1 $11 Rxg2+ 32. Kh4 Rxh2+ 33. Kg4) 31... Rxg2+ $19 {[%emt 0:00:57]} 32. Kh4 {[%emt 0:00:14][%csl Gf6][%cal Rf7h7]} g5+ $1 {[%emt 0:02:38]} ({Inferior is} 32... Rxh2+ 33. Bh3 g5+ 34. Kg3 Rxh3+ 35. Kxh3 Rxa3+ 36. Kg4 Bc8+ 37. Nd7 $11) 33. Kh5 {[%emt 0:00:13][%csl Gf6][%cal Rf7h7]} Rxh2+ {[%emt 0:00:11]} 34. Kxg5 {[%emt 0:01:00]} Ba6 {[%emt 0:02:04]} 35. Rf3 {[%emt 0:00:36]} e4 $1 {[%emt 0:01:29][%cal Be5e4,Be4e3][%mdl 32]} 36. Rh3 {[%emt 0:02:18][%csl Gf6,Gh3][%cal Rf7h7]} Bxf6+ {[%emt 0:00:26]} 37. Kxf6 {[%emt 0:02:23][%csl Gh3][%cal Rf7h7]} Rxh3 {[%emt 0:00:53]} 38. Bxh3 {[%emt 0:00:08][%mdl 4096] Endgame KRB-KRB} Bc4 {[%emt 0:03:11]} ({Avoid the trap} 38... e3 $2 39. Re7 $19) 39. Rxc7 {[%emt 0:00:39]} (39. Re7 Ra6+ 40. Kg5) 39... e3 {[%emt 0:00:35]} 40. Re7 {[%emt 0:00:00]} e2 {[%emt 0:00:00]} 41. Bg4 {[%emt 0:04:20]} Ra6+ {[%emt 0:06:52]} 42. Kg5 {[%emt 0:00:30]} Rxa3 {[%emt 0:03:56] aiming for ...Ra1.} 43. Bxe2 {[%emt 0:00:17]} Bxe2 {[%emt 0:01:44]} 44. Rxe2 {[%emt 0:00:04] [#] KR-KR} Ra8 $1 {[%emt 0:01:48] Black mates.} 45. Rc2 {[%emt 0:06:26] [#]} Rc8 $1 {[%emt 0:00:59]} 46. Rc4 {[%emt 0:00:03]} Kg7 {[%emt 0:00:16]} 47. Kf5 {[%emt 0:00:06]} h5 {[%emt 0:03:10][%cal Bh7h5,Bh5h4,Bh4h3,Bh3h2][%mdl 32]} 48. Ke6 {[%emt 0:01:22]} Kg6 {[%emt 0:01:56]} 49. Kd7 {[%emt 0:00:40]} Rh8 {[%emt 0:00:22]} 50. Rxc5 {[%emt 0:00:13]} h4 {[%emt 0:00:03]} 51. Ke7 {[%emt 0:08:37]} h3 {[%emt 0:01:56]} 52. Rc6+ {[%emt 0:00:04]} Kf5 {[%emt 0:00:54]} 53. Rc5+ {[%emt 0:00:52]} Ke4 {[%emt 0:00:20]} 54. Rc4+ {[%emt 0:00:22]} Kd3 {[%emt 0:00:16]} 55. Rc1 {[%emt 0:00:04]} h2 {[%emt 0:00:15]} 56. Rh1 {[%emt 0:00:02]} Ke4 {[%emt 0:00:46]} 57. Kf6 {[%emt 0:00:13]} Kf3 {[%emt 0:00:08]} 58. Kg7 {[%emt 0:00:12]} Rh3 {[%emt 0:00:09] Weighted Error Value: White=1.01/Black=0.26 (precise)} 0-1